[Event "81st Georgian Women-ch 2024"]
[Site "Tbilisi"]
[Date "2024.02.09"]
[Round "1.1"]
[White "Mgeladze, Kesaria"]
[Black "Melia, Salome"]
[Result "1-0"]
[ECO "B36"]
[WhiteElo "2038"]
[BlackElo "2355"]
[Annotator "RC"]
[PlyCount "103"]
[EventDate "2024.02.09"]
[EventCountry "GEO"]
[SourceTitle "playchess.com"]
[Source "ChessBase"]
[SourceQuality "1"]
[TimeControl "5400+30"]

1. e4 {[%emt 0:00:03]} c5 {[%emt 0:00:08]} 2. Nf3 {[%emt 0:00:15]} Nc6 {[%emt 0:00:09]} 3. d4 {[%emt 0:00:26]} cxd4 {[%emt 0:00:06]} 4. Nxd4 {[%emt 0:00:04]} g6 {[%emt 0:00:37]} 5. c4 {[%emt 0:00:20]} Nf6 {[%emt 0:01:11]} 6. Nc3 {[%emt 0:00:08]} Nxd4 {[%emt 0:00:07]} 7. Qxd4 {[%emt 0:00:06]} d6 {[%emt 0:00:31]} 8. Be3 {[%emt 0:01:29]} Bg7 {[%emt 0:00:06]} 9. Be2 {[%emt 0:00:07]} O-O {[%emt 0:00:58]} 10. Qd3 {[%emt 0:00:29]} Be6 {[%emt 0:10:41]} 11. O-O {[%emt 0:02:05]} Qa5 {[%emt 0:01:33]} 12. Bd2 {[%emt 0:00:48]} Rfc8 {[%emt 0:02:37]} 13. b3 {[%emt 0:02:40]} Nd7 {[%emt 0:02:13]} 14. Rac1 {[%emt 0:04:02]} Nc5 {[%emt 0:04:18]} 15. Qe3 {[%emt 0:06:43]} Bxc3 {[%emt 0:19:45]} 16. Bxc3 {[%emt 0:36:10]} Qxa2 {[%emt 0:01:03]} 17. Ra1 {[%emt 0:00:44]} Qxb3 {[%emt 0:16:21]} 18. Rfb1 {[%emt 0:00:57]} Qc2 {[%emt 0:00:20]} 19. f3 {[%emt 0:02:17]} Na4 {[%emt 0:07:42]} 20. Bd4 {[%emt 0:01:49]} Bxc4 {[%emt 0:04:06]} 21. Bd1 {[%emt 0:00:29]} Qd3 {[%emt 0:00:21]} 22. Bxa4 {[%emt 0:00:23]} e5 {[%emt 0:09:54]} 23. Qxd3 {[%emt 0:13:41]} Bxd3 {[%emt 0:00:03]} 24. Rd1 {[%emt 0:00:06]} Bc4 {[%emt 0:00:25]} 25. Be3 {[%emt 0:00:59]} b5 {[%emt 0:02:55]} 26. Bc2 {[%emt 0:01:20]} a5 {[%emt 0:02:27]} 27. Bd3 {[%emt 0:05:04]} b4 {[%emt 0:08:56]} 28. Bxc4 {[%emt 0:03:03]} Rxc4 {[%emt 0:00:02]} 29. Ra4 {[%emt 0:00:43]} Ra6 {[%emt 0:02:49]} 30. Rda1 {[%emt 0:03:28]} Rc2 {[%emt 0:00:35]} 31. Rxb4 {[%emt 0:02:29]} axb4 {[%emt 0:00:13]} 32. Rxa6 {[%emt 0:00:02]} b3 {[%emt 0:00:10]} 33. Rxd6 {[%emt 0:02:06]} b2 {[%emt 0:01:56]} 34. Rd1 {[%emt 0:00:08]} f6 {[%emt 0:01:35]} 35. h4 {[%emt 0:05:09]} h5 {[%emt 0:00:26]} 36. Kh2 {[%emt 0:00:20]} Kf7 {[%emt 0:00:33]} 37. Rd7+ {[%emt 0:04:05]} Ke6 {[%emt 0:00:01]} 38. Rb7 {[%emt 0:00:11]} Kd6 {[%emt 0:01:01]} 39. Bh6 {[%emt 0:01:20]} Kc6 {[%emt 0:00:32]} 40. Rb8 {[%emt 0:00:00]} Kc7 {[%emt 0:00:00]} 41. Rb3 {[%emt 0:00:00]} f5 {[%emt 0:00:00]} 42. Bg7 {[%emt 0:00:00]} Kd6 {[%emt 0:00:00]} 43. Bf8+ {[%emt 0:00:00]} Kd7 {[%emt 0:00:00]} 44. exf5 {[%emt 0:00:00]} gxf5 {[%emt 0:00:00]} 45. Ba3 {[%emt 0:00:00]} e4 {[%emt 0:00:00]} 46. fxe4 {[%emt 0:00:00]} fxe4 {[%emt 0:00:00]} 47. Bxb2 {[%emt 0:00:00]} Kd6 {[%emt 0:00:00]} 48. Bf6 {[%emt 0:00:00]} Ke6 {[%emt 0:00:00]} 49. Rb6+ {[%emt 0:00:00]} Kf5 {[%emt 0:00:00]} 50. Bd4 {[%emt 0:00:00]} Rc4 {[%emt 0:00:00]} 51. Rf6+ {[%emt 0:00:00]} Kg4 {[%emt 0:00:00]} 52. Be3 {[%emt 0:00:00]} 1-0

[Event "81st Georgian Women-ch 2024"]
[Site "Tbilisi"]
[Date "2024.02.09"]
[Round "1.2"]
[White "Donghvani, Nia"]
[Black "Arabidze, Meri"]
[Result "0-1"]
[ECO "C79"]
[WhiteElo "2036"]
[BlackElo "2466"]
[Annotator "TA"]
[PlyCount "97"]
[EventDate "2024.02.09"]
[EventCountry "GEO"]
[SourceTitle "playchess.com"]
[Source "ChessBase"]
[SourceQuality "1"]
[TimeControl "5400+30"]

{[%evp 15,97,33,35,28,36,38,44,21,26,22,31,22,35,0,21,0,7,0,7,-7,22,6,5,0,0,-23,-37,-24,-35,-58,-68,-115,-118,-198,-214,-185,-168,-267,-125,-157,-162,-201,-229,-236,-192,-255,-244,-243,-239,-249,-257,-263,-264,-284,-208,-233,-203,-394,-393,-29979,-398,-371,-395,-612,-629,-609,-601,-833,-825,-794,-770,-812,-855,-841,-832,-856,-834,-792,-706,-776,-771,-762,-725,-1170]} 1. e4 {[%emt 0:00:14]} e5 {[%emt 0:00:04]} 2. Nf3 {[%emt 0:00:05]} Nc6 {[%emt 0:00:05]} 3. Bb5 {[%emt 0:00:10]} a6 {[%emt 0:00:06]} 4. Ba4 {[%emt 0:00:04]} Nf6 {[%emt 0:00:05]} 5. O-O {[%emt 0:00:42]} d6 {[%emt 0:00:10]} 6. Re1 {[%emt 0:01:08]} Bd7 {[%emt 0:01:11]} 7. c3 {[%emt 0:01:14]} g6 {[%emt 0:01:02]} 8. d4 {[%emt 0:00:29]} Bg7 {[%emt 0:02:03]} 9. Nbd2 {[%emt 0:04:03] 9.h3 gains popularity. C79: Ruy Lopez: Steinitz-type lines with 3...a6 4 Ba4 Nf6 5 0-0 d6.} Nh5 {[%emt 0:05:17]} 10. Nf1 {[%emt 0:02:51]} O-O {[%emt 0:00:48]} 11. Bb3 {[%emt 0:03:45]} Bg4 {[%emt 0:09:10]} 12. d5 {[%emt 0:04:41]} Ne7 {[%emt 0:00:58]} 13. h3 {[%emt 0:00:36]} Bd7 {[%emt 0:00:46]} 14. N3h2 $146 {[%emt 0:10:29]} ({Predecessor:} 14. g4 Nf4 15. Bxf4 exf4 16. Qd2 Kh8 17. Qxf4 f5 18. gxf5 gxf5 19. e5 Ng6 20. Qd2 dxe5 21. d6 Bc6 22. dxc7 Qf6 23. N1h2 Nf4 24. Rad1 Qg6+ {0-1 Fecker,N (2328)-Jones,G (2671) Titled Tuesday intern op 22nd Feb Early blitz 2022 (5)}) 14... Kh8 {[%emt 0:01:22]} 15. Bc2 {[%emt 0:00:58]} Qe8 {[%emt 0:03:47]} 16. c4 {[%emt 0:06:34]} f5 {[%emt 0:05:47]} 17. a4 {[%emt 0:02:52]} a5 {[%emt 0:02:13]} 18. Ra3 {[%emt 0:00:22]} Qf7 {[%emt 0:02:42]} 19. Rf3 {[%emt 0:10:38]} Nf6 {[%emt 0:04:56]} 20. g4 {[%emt 0:05:33]} fxe4 {[%emt 0:13:49]} 21. Bxe4 {[%emt 0:00:29] Strongly threatening g5.} Qg8 {[%emt 0:00:04]} 22. Bc2 {[%emt 0:08:10]} c6 {[%emt 0:00:33]} 23. dxc6 {[%emt 0:01:00]} (23. Bb3 $15) 23... Bxc6 {[%emt 0:02:12]} (23... Nxc6 {simplifies} 24. Rd3 Nd4 25. Be3 Qxc4 26. Bxd4 exd4 27. Rxd4 Qc5) 24. Rd3 {[%emt 0:08:47]} (24. Rc3 $17) 24... Qxc4 $19 {[%emt 0:02:34]} 25. Rxd6 {[%emt 0:00:56]} Nfd5 {[%emt 0:03:02] White must now prevent ...Qc5.} 26. Qe2 {[%emt 0:05:13] [#]} (26. Ng3 $142) 26... Nf4 {[%emt 0:09:47]} (26... Qc5 $1 $19 {is more deadly.} 27. Re6 Nf4 28. Bxf4 Rxf4) 27. Bxf4 $17 {[%emt 0:00:33]} Qxf4 {[%emt 0:00:05]} 28. Ne3 {[%emt 0:02:45]} e4 {[%emt 0:08:28]} (28... Bxa4 29. Bxa4 Qxa4 30. Qc4 Qxc4 31. Nxc4 $17) 29. Re6 {[%emt 0:01:44]} Nd5 {[%emt 0:05:01]} 30. Ng2 {[%emt 0:08:11]} (30. Bxe4 $142 Nc7 31. Rxc6 (31. Ng2 $2 Qf7 $19) 31... bxc6 32. Bxc6) 30... Qf7 $19 {[%emt 0:00:58]} 31. Rxe4 {[%emt 0:00:08]} Bxb2 {[%emt 0:01:03] aiming for ...Nc3.} 32. Bb3 {[%emt 0:00:56]} Bg7 {[%emt 0:02:05]} 33. Qc2 {[%emt 0:04:55]} Qf6 {[%emt 0:02:33]} (33... Nb4 $2 34. Rxb4 $18) 34. Re6 {[%emt 0:01:47]} Qd4 {[%emt 0:04:41]} 35. Rd1 {[%emt 0:02:11]} Qc3 {[%emt 0:00:35]} 36. Ne3 $2 {[%emt 0:01:13]} (36. Re2 {keeps fighting.} Rad8 37. Bxd5 Rxd5 38. Rxd5 Bxd5 39. Qxc3 Bxc3 40. Rc2) 36... Nf4 $19 {[%emt 0:00:53]} 37. Qxc3 $2 {[%emt 0:01:20]} (37. Rxc6 $19 bxc6 (37... Nxh3+ $2 38. Kg2 $19) 38. Qxc3 Nxh3+ (38... Bxc3 $2 39. Nf3 $19) 39. Kg2 Nf4+ (39... Bxc3 40. Kxh3 Rxf2 41. g5 $17) 40. Kh1 Bxc3 41. Nf3) 37... Bxc3 $2 {[%emt 0:00:24]} (37... Nxh3+ {mates} 38. Kf1 Rxf2+ (38... Bxc3 $2 39. Nf5 $19) 39. Ke1 Bxc3+ 40. Rd2 Rxd2 (40... Bxd2+ $2 41. Kd1 $19) 41. Rxc6 bxc6 42. Nhf1 Rd4+ 43. Ke2 Rf8 44. Nf5 gxf5 45. g5 Re8+ (45... Nxg5 {is a self mate.} 46. Ng3 Re8+ 47. Kf1 Rd2 48. Bd1 Rxd1+ 49. Kf2 Bd4+ 50. Kg2 Rg1+ 51. Kh2 Re6 52. Nxf5 Re2#) 46. Be6 Rxe6+ 47. Ne3 Rd2+ (47... Nxg5 48. Kf2 Rd2+ 49. Kg1 Rxe3 50. Kf1 Nf7 51. Kg1 Re1#) 48. Kf3 Nxg5+ (48... Rf2+ 49. Kg3 Rxe3+ 50. Kh4 Nf4 51. g6 Bf6#) 49. Kf4 Rf2+ (49... Nh3+ 50. Kxf5 Rxe3 51. Kg4 Rd4+ 52. Kh5 Re5+ 53. Kh6 Rh4#) 50. Kxg5 Rg6+ 51. Kh5 Rh2#) 38. Rxc6 $19 {[%emt 0:00:03]} bxc6 {[%emt 0:00:49]} ({But not} 38... Nxh3+ 39. Kg2 Nf4+ (39... bxc6 40. Kxh3 Rxf2 41. g5 $17) 40. Kg3 bxc6 41. g5) 39. f3 {[%emt 0:00:54]} (39. Nf3 $142) 39... Bd4 $19 {[%emt 0:01:04]} 40. Nhf1 {[%emt 0:00:00] [#]} Rae8 $1 {[%emt 0:00:00]} 41. Kf2 {[%emt 0:00:00]} (41. Rxd4 Ne2+) 41... Nxh3+ {[%emt 0:00:00]} 42. Ke2 {[%emt 0:00:00]} Ng1+ {[%emt 0:00:00]} 43. Kd3 {[%emt 0:00:00]} Bxe3 {[%emt 0:00:00]} 44. Nxe3 {[%emt 0:00:00]} Rxf3 {[%emt 0:00:00]} 45. Re1 {[%emt 0:00:00]} Nh3 {[%emt 0:00:00] Hoping for ...Nf2+.} 46. Kd2 {[%emt 0:00:00]} Nf2 {[%emt 0:00:00] ...Ne4+ is the strong threat.} 47. Bc4 {[%emt 0:00:00]} Ne4+ {[%emt 0:00:00]} 48. Kd3 {[%emt 0:00:00]} Nd6 {[%emt 0:00:00] Threatens to win with ...Nxc4.} 49. Kd4 {[%emt 0:06:17]} 0-1

[Event "81st Georgian Women-ch 2024"]
[Site "Tbilisi"]
[Date "2024.02.09"]
[Round "1.3"]
[White "Khotenashvili, Bella"]
[Black "Javakhishvili, Lela"]
[Result "1/2-1/2"]
[ECO "E04"]
[WhiteElo "2467"]
[BlackElo "2433"]
[Annotator "TA"]
[PlyCount "39"]
[EventDate "2024.02.09"]
[EventCountry "GEO"]
[SourceTitle "playchess.com"]
[Source "ChessBase"]
[SourceQuality "1"]
[TimeControl "5400+30"]

{[%evp 23,39,28,25,10,7,13,5,2,8,10,0,0,0,0,0,2,8,20]} 1. d4 {[%emt 0:00:02]} Nf6 {[%emt 0:00:09]} 2. c4 {[%emt 0:00:11]} e6 {[%emt 0:00:21]} 3. Nf3 {[%emt 0:00:13]} d5 {[%emt 0:00:41]} 4. g3 {[%emt 0:00:19]} dxc4 {[%emt 0:00:58]} 5. Bg2 {[%emt 0:00:32]} c5 {[%emt 0:00:36]} 6. O-O {[%emt 0:03:39]} Nc6 {[%emt 0:00:57]} 7. dxc5 {[%emt 0:03:53]} Qxd1 {[%emt 0:01:08]} 8. Rxd1 {[%emt 0:00:04]} Bxc5 {[%emt 0:00:24]} 9. Nbd2 {[%emt 0:00:48]} c3 {[%emt 0:00:58]} 10. bxc3 {[%emt 0:00:04]} O-O {[%emt 0:02:22]} 11. Nb3 {[%emt 0:00:27]} Be7 {[%emt 0:00:16]} 12. c4 {[%emt 0:04:10]} Bd7 {[%emt 0:02:54]} 13. Nfd4 {[%emt 0:03:33]} Rac8 {[%emt 0:03:59][%cal Ba8c8,Bc8c4,Bc4d4,Bd4a4][%mdl 32] The position is equal.} 14. Bb2 {[%emt 0:01:37]} b6 {[%emt 0:02:08]} 15. Nb5 {[%emt 0:04:20][%cal Bd4b5,Bb5a7,Ba7c6][%mdl 32] next Bxf6 is good for White.} Nb4 {[%emt 0:06:55]} 16. Rdc1 {[%emt 0:08:40]} Nc2 {[%emt 0:06:37]} 17. Nxa7 {[%emt 0:08:06]} Rxc4 {[%emt 0:01:40]} 18. Nd4 {[%emt 0:01:43]} Rxd4 {[%emt 0:02:38]} 19. Rxc2 {[%emt 0:01:11]} Ra4 {[%emt 0:00:57]} 20. Nc6 {[%emt 0:05:57] A rather calm draw.   Weighted Error Value: White=0.02 (flawless) /Black=0.00 (flawless) .  OK:         	White=7     	Black=5      Best:        	---       	Black=1} 1/2-1/2

[Event "81st Georgian Women-ch 2024"]
[Site "Tbilisi"]
[Date "2024.02.09"]
[Round "1.4"]
[White "Batsiashvili, Nino"]
[Black "Lomaia, Diana"]
[Result "1-0"]
[ECO "E21"]
[WhiteElo "2451"]
[BlackElo "2037"]
[Annotator "TA"]
[PlyCount "55"]
[EventDate "2024.02.09"]
[EventCountry "GEO"]
[SourceTitle "playchess.com"]
[Source "ChessBase"]
[SourceQuality "1"]
[TimeControl "5400+30"]

{[%evp 10,55,20,23,22,8,16,9,40,35,42,35,41,38,43,42,58,50,44,46,52,48,90,65,117,117,118,114,120,115,137,122,122,152,126,129,240,239,288,165,159,141,247,231,514,529,29997,29998]} 1. d4 {[%emt 0:00:04]} Nf6 {[%emt 0:00:11]} 2. c4 {[%emt 0:00:04]} e6 {[%emt 0:00:05]} 3. Nc3 {[%emt 0:00:04]} Bb4 {[%emt 0:00:19]} 4. Nf3 {[%emt 0:00:18]} O-O {[%emt 0:01:07]} 5. Bg5 {[%emt 0:02:10]} c5 {[%emt 0:03:12]} 6. Rc1 {[%emt 0:03:09]} h6 {[%emt 0:02:28]} 7. Bh4 {[%emt 0:00:12]} cxd4 {[%emt 0:07:14]} 8. Nxd4 {[%emt 0:00:16]} Nc6 {[%emt 0:07:11] The position is equal.} 9. e3 {[%emt 0:01:38]} d5 {[%emt 0:10:16]} 10. cxd5 {[%emt 0:03:30]} exd5 {[%emt 0:01:08]} 11. Be2 {[%emt 0:00:08]} Be7 {[%emt 0:04:47]} 12. O-O {[%emt 0:00:26]} Be6 {[%emt 0:10:18]} 13. Nxe6 {[%emt 0:07:18]} fxe6 {[%emt 0:00:07]} 14. Bd3 {[%emt 0:00:04]} Qe8 {[%emt 0:08:06]} 15. Bb1 {[%emt 0:01:09]} Ne5 {[%emt 0:06:41]} 16. Bg3 {[%emt 0:10:46]} Nc4 {[%emt 0:09:22]} (16... Nc6 $1 $14) 17. e4 $16 {[%emt 0:01:17] [#] aiming for e5.} Rd8 {[%emt 0:07:57]} (17... Nxb2 $2 {perishes.} 18. Qe2 Ba3 19. Nb5 $18) 18. exd5 {[%emt 0:06:14]} exd5 {[%emt 0:01:30]} 19. Qc2 {[%emt 0:00:13]} b5 {[%emt 0:07:27]} 20. a4 {[%emt 0:06:39]} a6 {[%emt 0:02:47]} 21. axb5 {[%emt 0:01:01]} axb5 {[%emt 0:00:27]} 22. Rfe1 {[%emt 0:01:10][%cal Bf1e1,Be1e7,Be7e6][%mdl 32]} Qd7 {[%emt 0:07:00]} (22... Qf7 $16 {might work better.} 23. Nxb5 Bb4) 23. Rcd1 $18 {[%emt 0:12:36][%cal Oc3d5] Nxd5! is the strong threat.} Nb6 {[%emt 0:01:28] [#]} 24. Nxb5 {[%emt 0:04:19]} Qxb5 {[%emt 0:00:33]} 25. Rxe7 {[%emt 0:00:01] Intending Qg6 and mate.} Rd7 {[%emt 0:00:24]} (25... Rde8 $16 {was worth a try.} 26. Rc7 Rf7 27. Rxf7 Kxf7) 26. Re6 {[%emt 0:04:49] Threatens to win with Be5.} Nc4 {[%emt 0:00:37]} (26... Rdf7 27. Be5 Nbd7) 27. Qg6 {[%emt 0:14:48]} (27. b3 Na3 28. Qd3 Rb7 29. Qxb5 Rxb5 $16) 27... Rdd8 {[%emt 0:00:38]} 28. Re7 {[%emt 0:01:48] Weighted Error Value: White=0.09 (flawless) /Black=0.75.  Mistake:       	White=1     	Black=4      Inaccurate:     	---       	Black=3      OK:         	White=11    	Black=5      Best:        	White=3     	---} 1-0

[Event "81st Georgian Women-ch 2024"]
[Site "Tbilisi"]
[Date "2024.02.09"]
[Round "1.5"]
[White "Tsetskhladze, Mariam"]
[Black "Kirtadze, Anastasia"]
[Result "1-0"]
[ECO "B13"]
[WhiteElo "1912"]
[BlackElo "1981"]
[Annotator "NA RC"]
[PlyCount "73"]
[EventDate "2024.02.09"]
[EventCountry "GEO"]
[SourceTitle "playchess.com"]
[Source "ChessBase"]
[SourceQuality "1"]
[TimeControl "5400+30"]

1. e4 {[%emt 0:00:33]} c6 {[%emt 0:00:31]} 2. d4 {[%emt 0:00:30]} d5 {[%emt 0:00:13]} 3. exd5 {[%emt 0:00:22]} cxd5 {[%emt 0:01:10]} 4. Bd3 {[%emt 0:00:09]} Nc6 {[%emt 0:01:25]} 5. c3 {[%emt 0:00:18]} g6 {[%emt 0:07:59]} 6. Nf3 {[%emt 0:05:32]} Bg7 {[%emt 0:00:30]} 7. O-O {[%emt 0:00:34]} Qc7 {[%emt 0:03:35] B13: Caro-Kann: Exchange Variation and Panov-Botvinnik Attack.} 8. a4 {[%emt 1:26:32]} Nf6 {[%emt 0:03:21]} 9. Re1 {[%emt 0:00:00]} h6 {[%emt 0:06:17]} 10. b4 {[%emt 0:00:00]} g5 {[%emt 0:03:21]} 11. Ba3 {[%emt 0:00:00]} Be6 {[%emt 0:05:26]} 12. b5 {[%emt 0:00:00]} Na5 {[%emt 0:01:45]} 13. Ne5 {[%emt 0:00:00]} Bf8 {[%emt 0:13:34]} 14. Bb4 {[%emt 0:00:00]} Nc4 {[%emt 0:02:43]} 15. a5 {[%emt 0:00:00]} Nxe5 {[%emt 0:07:58]} 16. dxe5 {[%emt 0:00:00]} Nd7 {[%emt 0:00:16]} 17. b6 {[%emt 0:00:00]} Qc8 {[%emt 0:11:19]} 18. bxa7 {[%emt 0:00:00]} Bg7 {[%emt 0:00:36]} 19. Bb5 {[%emt 0:00:00]} Rxa7 {[%emt 0:01:15]} (19... O-O $16 20. Bxd7 (20. Bxe7 Nxe5 21. Qa4 Rxa7 $18) 20... Qxd7) 20. Nd2 {[%emt 0:00:00]} Kf8 {[%emt 0:03:15]} 21. Bxd7 {[%emt 0:01:17]} Qxd7 {[%emt 0:01:34]} 22. Nb3 {[%emt 0:00:16]} h5 {[%emt 0:03:57]} (22... Ra8 $16 23. Nc5 Qc8) 23. Nc5 {[%emt 0:00:56]} Qc8 {[%emt 0:01:53]} 24. Nxe6+ {[%emt 0:01:21]} fxe6 {[%emt 0:02:41]} 25. Qf3+ {[%emt 0:00:11]} Ke8 {[%emt 0:01:04]} 26. Qe3 {[%emt 0:00:18]} Ra6 $18 {[%emt 0:00:41]} 27. Qxg5 {[%emt 0:00:46]} Bf8 {[%emt 0:00:03]} 28. Rad1 {[%emt 0:01:47]} Rc6 {[%emt 0:01:45]} 29. Re3 {[%emt 0:02:22]} Rc4 {[%emt 0:02:10]} 30. h3 {[%emt 0:00:45]} Kd7 {[%emt 0:00:27]} 31. Red3 {[%emt 0:00:50]} Rh7 {[%emt 0:06:43]} 32. Rxd5+ {[%emt 0:00:30]} exd5 {[%emt 0:00:52]} 33. Qf5+ {[%emt 0:00:03]} Kc7 {[%emt 0:01:37]} 34. Qxh7 {[%emt 0:00:13]} Qe6 {[%emt 0:00:47]} 35. Qxh5 {[%emt 0:00:39]} Re4 {[%emt 0:00:29]} 36. Qe8 {[%emt 0:00:29]} Rf4 {[%emt 0:00:03]} 37. Bd6+ {[%emt 0:00:06]} 1-0

[Event "81st Georgian Women-ch 2024"]
[Site "Tbilisi"]
[Date "2024.02.10"]
[Round "2.1"]
[White "Melia, Salome"]
[Black "Kirtadze, Anastasia"]
[Result "1-0"]
[ECO "B48"]
[WhiteElo "2355"]
[BlackElo "1981"]
[Annotator "TA"]
[PlyCount "83"]
[EventDate "2024.02.09"]
[EventCountry "GEO"]
[SourceTitle "playchess.com"]
[Source "ChessBase"]
[SourceQuality "1"]
[TimeControl "5400+30"]

{[%evp 11,83,33,39,31,52,39,37,25,26,12,12,10,27,25,29,9,13,15,17,12,27,5,23,-23,6,0,54,65,62,12,23,-41,-12,-68,-43,-51,-50,-326,-341,-358,-347,-905,-876,-866,-884,-1124,-1085,-1345,-1302,-1218,-363,-979,-971,-973,-940,-984,-491,-478,80,76,250,245,252,246,256,254,247,246,257,233,305,309,29994,29995]} 1. e4 {[%emt 0:00:02]} c5 {[%emt 0:00:07]} 2. Nf3 {[%emt 0:00:03]} e6 {[%emt 0:00:05]} 3. d4 {[%emt 0:00:07]} cxd4 {[%emt 0:00:06]} 4. Nxd4 {[%emt 0:00:03]} Nc6 {[%emt 0:00:15]} 5. Nc3 {[%emt 0:00:48]} Qc7 {[%emt 0:00:43]} 6. Be3 {[%emt 0:00:10]} a6 {[%emt 0:00:47]} 7. Qf3 {[%emt 0:00:22]} b5 {[%emt 0:09:41]} 8. Nxc6 {[%emt 0:01:47]} Qxc6 {[%emt 0:00:51]} 9. Bd3 {[%emt 0:01:01] White is slightly better.} Bb7 {[%emt 0:02:10][%cal Of8a3]} 10. O-O {[%emt 0:03:44]} Nf6 {[%emt 0:03:29]} 11. a3 {[%emt 0:22:20]} d6 {[%emt 0:11:24]} 12. Qg3 {[%emt 0:15:13]} h5 {[%emt 0:06:19][%cal Bh7h5,Bh5h4][%mdl 32]} 13. h3 {[%emt 0:05:57]} h4 {[%emt 0:03:56]} 14. Qf3 {[%emt 0:00:07]} Be7 {[%emt 0:00:37]} 15. Qe2 {[%emt 0:01:45][%cal Rc3b5]} Qc7 {[%emt 0:03:43]} 16. f4 {[%emt 0:03:57]} Nh5 {[%emt 0:10:29]} 17. Qf2 {[%emt 0:02:04]} (17. Qg4 {feels stronger.}) 17... Bc6 {[%emt 0:02:38]} 18. Rfe1 {[%emt 0:04:54]} Rg8 {[%emt 0:06:35]} (18... Ng3 $11) 19. f5 $14 {[%emt 0:09:17]} g5 {[%emt 0:07:12]} 20. fxg6 {[%emt 0:14:03] White is more active.} (20. Be2 $14 Nf6 21. e5 dxe5 22. fxe6 fxe6 23. Rad1) 20... Rxg6 $11 {[%emt 0:04:26]} 21. Qf3 {[%emt 0:05:55]} (21. Nd5 $11 Qb7 (21... exd5 22. exd5 Rf6 23. Qxh4 $16) 22. Rad1) 21... Ng3 {[%emt 0:02:06]} 22. Nd5 {[%emt 0:01:19]} Qb7 $1 $15 {[%emt 0:01:35]} 23. Nxe7 {[%emt 0:04:18]} Kxe7 {[%emt 0:06:16]} 24. Bf4 $2 {[%emt 0:01:33][%mdl 8192]} (24. Bf2 $15) 24... Rag8 $19 {[%emt 0:01:15]} 25. Rad1 {[%emt 0:00:39]} e5 {[%emt 0:01:33] aiming for ...Rf6.} 26. Bd2 $2 {[%emt 0:01:04] [#]} (26. Bxg3 Rxg3 27. Qh5 Rxg2+ (27... Rxh3 $2 28. Rf1 $19) 28. Kh1) 26... f5 $1 {[%emt 0:01:24][%mdl 512]} 27. Bb4 {[%emt 0:00:43]} (27. Qf2 fxe4) 27... fxe4 {[%emt 0:01:28]} 28. Qf2 {[%emt 0:00:29]} exd3 {[%emt 0:03:54]} 29. Rxe5+ {[%emt 0:00:14]} Kd8 {[%emt 0:00:29]} 30. Rxd3 {[%emt 0:00:53]} Kc8 $2 {[%emt 0:07:17]} (30... Ne4 31. Qf4 Kc8 (31... Rxg2+ $2 32. Kf1 $19) 32. Rxe4 Rxg2+ (32... Bxe4 $2 33. g4 $19) 33. Kf1 Bxe4 34. Rc3+ Kb8) 31. Rxd6 $2 {[%emt 0:00:18]} (31. Bxd6 Ne4 (31... Ne2+ $2 32. Kf1 $19) 32. Qf5+ Qd7 33. Re8+ Rxe8 34. Qxg6) 31... Rxd6 {[%emt 0:01:01]} 32. Bxd6 {[%emt 0:00:04]} Qd7 {[%emt 0:00:53]} 33. Qc5 {[%emt 0:00:41]} Rd8 {[%emt 0:00:56]} (33... Rg6 $142 34. Rd5 Ne4) 34. Re6 {[%emt 0:01:03] [#]} Rg8 $2 {[%emt 0:01:18]} (34... Qxe6 35. Qxc6#) ({Better is} 34... Kb7 $1 $19 35. Qe3 (35. Re7 $2 Qxe7 36. Bxe7 Rd2 $19) 35... Nf5) 35. Re7 $16 {[%emt 0:00:29] Some like it hot} Re8 $2 {[%emt 0:00:27] [#]} 36. Qb6 $1 $40 {[%emt 0:00:31][%csl Gd6][%cal Rb6b8][%mdl 128] White has strong attack.} Ne2+ {[%emt 0:00:33] [#]} (36... Qxd6 $2 {is the wrong capture.} 37. Rxe8+ (37. Qxa6+ {is a self mate.} Kd8 38. Qb6+ Kxe7 39. Kh2 Ne2+ 40. Kh1 Bxg2+ 41. Kxg2 Qxb6 42. Kf1 Kf6 43. Ke1 Qd4 44. Kf1 Qg1#) 37... Bxe8 38. Qxd6 $18) 37. Rxe2 $1 {[%emt 0:00:23][%mdl 512]} Qb7 {[%emt 0:00:28]} 38. Rxe8+ {[%emt 0:00:27]} Bxe8 {[%emt 0:00:01]} 39. Qc5+ {[%emt 0:00:34]} Kd7 {[%emt 0:00:24]} 40. Be5 {[%emt 0:00:00]} Bf7 {[%emt 0:00:00]} 41. Qd6+ {[%emt 0:00:00]} Kc8 $2 {[%emt 0:00:00]} (41... Ke8 $18 42. Bf6 Bg6) 42. Qf8+ {[%emt 0:00:00] Quite a comeback for White.   Weighted Error Value: White=0.90/Black=0.78.  Loses game:     	White=1     	Black=1      Mistake:       	White=5     	Black=2      Inaccurate:     	---       	Black=3      OK:         	White=10    	Black=9      Best:        	White=1     	Black=1      Strong:       	White=1     	Black=1      Brilliant:      	White=1     	Black=1} 1-0